{"text_format":"1","workbook":"xlsx","n_sheets":1,"sheets":["S4G_Homework 2"],"not_rendered":{"charts":0,"images":1,"macros":1,"external_links":0,"defined_names":1,"comments":0,"pivot_tables":0},"unopened":[],"bounds":{"document_bytes":16777216,"sheet_cells":100000,"rows_first":2000,"rows_last":500,"rows_between":2000,"halvings":0,"cell_chars":16384,"cell_head_chars":4096},"cells_cut":0,"cells_raw":0,"read":"whole","date_system":"1900"}

{"sheet":"S4G_Homework 2","index":0,"n_rows":130,"n_cols":43,"rows_kept":130,"cut":false,"hidden":false,"merged":[[10,28,10,30],[10,31,11,32],[37,3,37,5],[37,7,37,9],[37,35,37,38],[2,2,3,5],[2,6,3,32],[5,2,6,5],[5,6,6,32],[8,1,8,32],[37,1,37,2],[37,14,39,31],[39,5,39,7],[12,31,13,32],[19,3,19,30],[20,3,25,30],[27,3,27,30],[28,3,33,30],[39,8,39,9],[41,1,41,2],[41,14,43,31],[43,6,43,7],[43,8,43,9],[41,3,41,5],[41,7,41,8],[41,35,41,37],[45,14,47,31],[47,6,47,7],[47,8,47,9],[45,35,45,37],[45,1,45,2],[45,3,45,5],[45,7,45,8],[49,1,49,2],[49,5,49,6],[49,14,51,31],[49,3,49,4],[49,7,49,9],[49,35,49,37],[55,12,55,13],[52,6,52,7],[52,8,52,9],[77,17,78,31],[78,35,78,38],[64,25,64,27],[101,22,101,26],[96,25,96,26],[98,7,99,19],[64,22,64,24],[64,35,64,37],[66,2,66,31],[67,2,71,31],[101,15,101,16],[79,5,79,7],[79,8,79,10],[82,14,82,31],[83,14,87,31],[86,5,86,6],[86,7,86,8],[93,1,93,8],[93,14,93,15],[94,1,94,8],[94,39,94,40],[95,27,95,30],[126,18,126,23],[126,24,126,25],[129,27,129,32],[103,3,103,19],[104,3,110,19],[115,21,115,32],[116,21,124,32],[120,2,120,3],[121,6,121,7],[118,5,118,6]]}
[]
[]
[null,null,"Name :"]
[]
[]
[null,null,"Teacher :"]
[]
[]
[null,"General Official Homework 2                                                      Created by Mr Lafferty                                                                                                                                                                                                 St. Ninian's High School"]
[]
[null,null,null,"This homework covers topics",null,null,null,null,null,null,null,null,null,null,null,null,null,null,null,null,null,null,null,null,null,null,null,null,"Score"]
[]
[null,null,null,"Basic Number Operations",null,null,null,null,null,null,null,null,null,null,null,null,null,null,null,"Algebraic Equations",null,null,null,null,null,null,null,null,null,null,null,23]
[]
[null,null,null,"Simple Percentage & Money",null,null,null,null,null,null,null,null,null,null,null,null,null,null,null,"Linear Patterns"]
[]
[null,null,null,"Negative Numbers",null,null,null,null,null,null,null,null,null,null,null,null,null,null,null,"Trigonometry"]
[]
[]
[null,null,null,"Teacher Comments :"]
[]
[]
[]
[]
[]
[]
[]
[null,null,null,"Pupil's Comment :"]
[]
[]
[]
[]
[]
[]
[]
[null,"1. ","Carry out the following instructions.",null,null,null,null,null,null,null,null,null,null,null,"( NON - CALCULATOR QUESTION )"]
[]
[null,"(a)",null,{"$f":"ROUND(RAND()*(950-730)+730,1)","v":784.8},null,null,"-",{"$f":"ROUND(RAND()*(550-330)+330,1)","v":394.4},null,null,null,"Working : ",null,null,null,null,null,null,null,null,null,null,null,null,null,null,null,null,null,null,null,null,null,null,null,{"$f":"I40","v":390.4}]
[]
[null,null,"Answer",null,null,null,null,null,{"$f":"D38-H38","v":390.4}]
[]
[null,"(b)",null,{"$f":"ROUND(RAND()*(50-15)+15,1)","v":17.3},null,null,"x",{"$f":"ROUND(RAND()*(9-3)+3,0)*10","v":70},null,null,null,"Working : ",null,null,null,null,null,null,null,null,null,null,null,null,null,null,null,null,null,null,null,null,null,null,null,{"$f":"I44","v":1211}]
[]
[null,null,"Answer",null,null,null,null,null,{"$f":"D42*H42","v":1211}]
[]
[null,"(c) ",null,{"$f":"ROUND(RAND()*(98-32)+32,1)*H46","v":561.6},null,null,"÷",{"$f":"ROUND(RAND()*(9-4)+4,0)","v":8},null,null,null,"Working : ",null,null,null,null,null,null,null,null,null,null,null,null,null,null,null,null,null,null,null,null,null,null,null,{"$f":"I48","v":70.2}]
[]
[null,null,"Answer :",null,null,null,null,null,{"$f":"D46/H46","v":70.2}]
[]
[null,"(d)",null,{"$f":"ROUND(RAND()*(9-2)+2,0)*10","v":90},null,"% of",null,{"$f":"ROUND(RAND()*(9-2)+2,1)*10","v":22},null,null,null,"Working : ",null,null,null,null,null,null,null,null,null,null,null,null,null,null,null,null,null,null,null,null,null,null,null,{"$f":"I53","v":19.8}]
[]
[]
[null,null,"Answer :",null,null,null,null,null,{"$f":"H50*D50/100","v":19.8},null,null,null,null,null,null,null,null,null,null,null,null,null,null,null,null,null,null,null,"( 5 marks )"]
[]
[]
[null,"2.","Maura sees a bracelet costing £",null,null,null,null,null,null,null,null,null,{"$f":"ROUND(RAND()*(40-14)+14,0)*5","v":85},null,"in a jeweler's window."]
[]
[null,null,"The jeweler offers Maura a ",null,null,null,null,null,null,null,null,{"$f":"ROUND(RAND()*(4-1)+1,0)*5","v":10},"% discount."]
[]
[null,null,"Maura decides to buy the bracelet."]
[]
[]
[null,null,"How much does she pay ?",null,null,null,null,null,null,null,null,null,"( NON - CALCULATOR )"]
[]
[null,null,null,null,null,null,null,null,null,null,null,null,null,null,null,null,null,null,null,"Answer",null,null,null,null,null,{"$f":"M56-L58/100*M56","v":76.5},null,null,"( 3 marks )",null,null,null,null,null,null,{"$f":"Z65","v":76.5}]
[]
[null,null,"Working :"]
[]
[]
[]
[]
[]
[]
[]
[]
[null,"3.","In an experiment Georgia measures the temperature of two liquids.",null,null,null,null,null,null,null,null,null,null,null,null,null,null,null,null,null,null,null,null,null,null,null,null,null,"( 2 marks )"]
[null,null,"Liquid one's temperture",null,null,null,null,null,null,null,{"$f":"ROUND(RAND()*(-6-(-25))+(-25),0)","v":-21},"oC"]
[null,null,"Liquid two's temperature",null,null,null,null,null,null,null,{"$f":"ROUND(RAND()*(18-(-5))+(-5),0)","v":0},"oC",null,null,"Working :"]
[null,null,"Find the difference in temperature.",null,null,null,null,null,null,null,null,null,null,null,null,null,null,null,null,null,null,null,null,null,null,null,null,null,null,null,null,null,null,null,null,{"$f":"I80","v":21}]
[null,"Answer :",null,null,null,null,null,null,{"$f":"K78-K77","v":21}]
[]
[]
[null,"4."," Solve algebraically the equation.",null,null,null,null,null,null,null,null,null,null,null,"Working :"]
[]
[null,null,null,null,null,{"$f":"H87*H85-K85","v":13},"=",{"$f":"ROUND(RAND()*(9-(4))+(4),0)","v":5},"x","-",{"$f":"ROUND(RAND()*(10-(6))+(6),0)","v":7}]
[null,null,{"$f":"ROUND(RAND()*(9-(1))+(1),0)","v":8}]
[null,"Answer :",null,null,null,null,null,{"$f":"ROUND(RAND()*(9-2)+(2),0)","v":4},null,null,null,null,null,null,null,null,null,null,null,null,null,null,null,null,null,null,null,null,null,null,null,null,null,null,null,null,null,null,null,{"$f":"H87","v":4}]
[]
[null,null,null,null,null,null,null,null,null,null,null,null,null,null,null,null,null,null,null,null,null,null,null,null,null,null,null,null,"( 3 marks )"]
[]
[]
[null,"5.","(a) Complete the following table",null,null,null,null,null,null,null,null,null,null,null,null,null,null,null,null,null,null,null,null,null,null,null,null,null,null,null,null,null,null,null,null,null,null,null,null,null,null,{"$f":"ROUND(RAND()*(1-0)+0,0)","v":1}]
[null,null,null,null,null,null,null,null,null,null,null,null,null,null,null,null,null,null,null,null,null,null,null,null,null,null,null,null,null,null,null,null,null,null,null,null,null,"W","=",{"$f":"ROUND(RAND()*(9-5)+5,0)","v":8},"C",{"$f":"IF(AP92=0,\"+\",\"-\")","v":"-"},{"$f":"ROUND(RAND()*(4-1)+1,0)","v":3}]
[null,"No. of colour tiles (C)",null,null,null,null,null,null,null,1,2,3,4,5,null,null,{"$f":"ROUND(RAND()*(15-9)+9,0)","v":10}]
[null,"No. of white tiles (W)",null,null,null,null,null,null,null,{"$f":"IF($AP$93=\"+\",J94*$AN$93+$AQ$93,J94*$AN$93-$AQ$93)","v":5},null,{"$f":"IF($AP$93=\"+\",L94*$AN$93+$AQ$93,L94*$AN$93-$AQ$93)","v":21},{"$f":"IF($AP$93=\"+\",M94*$AN$93+$AQ$93,M94*$AN$93-$AQ$93)","v":29},null,null,null,null,null,null,null,null,null,null,null,null,null,null,null,null,null,null,null,null,null,null,null,null,"C","=",{"$f":"IF($AP$93=\"+\",Q94*AN93+AQ93,Q94*AN93-AQ93)","v":77}]
[null,null,null,null,null,null,null,null,null,null,null,null,null,null,null,null,null,null,null,null,null,null,null,null,null,null,null,"Answer :"]
[null,null,"(b) Write down a formula connecting the number of white and colour tiles.",null,null,null,null,null,null,null,null,null,null,null,null,null,null,null,null,null,null,null,null,null,null,"W ="]
[null,null,null,null,null,null,null,null,null,null,null,null,null,null,null,null,null,null,null,null,null,null,null,null,null,null,null,null,null,null,null,null,null,null,null,null,null,null,2,{"$f":"IF($AP$93=\"+\",K94*$AN$93+$AQ$93,K94*$AN$93-$AQ$93)","v":13}]
[null,null,null,"Working :",null,null,null,null,null,null,null,null,null,null,null,null,null,null,null,null,null,null,null,null,null,null,null,null,null,null,null,null,null,null,null,null,null,null,5,{"$f":"IF($AP$93=\"+\",N94*$AN$93+$AQ$93,N94*$AN$93-$AQ$93)","v":37}]
[null,null,null,null,null,null,null,null,null,null,null,null,null,null,null,null,null,null,null,null,null,null,null,null,null,null,null,null,null,null,null,null,null,null,null,null,null,null,11,{"$f":"AN95","v":77}]
[null,null,null,null,null,null,null,null,null,null,null,null,null,null,null,null,null,null,null,null,null,null,null,null,null,null,null,null,null,null,null,null,null,null,null,null,null,"C","=",{"$f":"IF($AP$93=\"+\",AO101*$AN$93+$AQ$93,AO101*$AN$93-$AQ$93)","v":205},{"$f":"ROUND(RAND()*(30-19)+19,0)","v":26}]
[null,null,"(c) How many colour tiles are required for ",null,null,null,null,null,null,null,null,null,null,null,null,{"$f":"AN101","v":205},null,"white tiles ?",null,null,null,null,"Answer   C  =",null,null,null,null,null,null,null,null,null,null,null,null,null,null,null,null,{"$f":"AO101","v":26}]
[]
[null,null,null,"Working :"]
[]
[]
[]
[]
[]
[]
[]
[null,null,null,null,null,null,null,null,null,null,null,null,null,null,null,null,null,null,null,null,null,null,null,null,null,null,null,null,"( 6 marks )"]
[]
[]
[null,"6.","The shaded part of a garden light is triangular."]
[null,null,null,null,null,null,null,null,null,null,null,null,null,null,null,null,null,null,null,null,null,"Working :"]
[]
[null,null,null,null,null,null,null,null,null,null,null,null,null,null,null,null,null,null,null,null,null,null,null,null,null,null,null,null,null,null,null,null,null,null,null,null,null,null,null,{"$f":"ROUND(SQRT((C121*C121)+(K118-I124)*(K118-I124)),1)","v":0}]
[null,null,null,null,null,{"$f":"ROUND(RAND()*(40-15)+15,0)","v":32},null,"cm"]
[]
[]
[null,null,null,null,null,null,{"$f":"ROUND(RAND()*(60-45)+45,0)","v":58},null,"o"]
[null,null,null,null,null,null,null,"x","cm"]
[]
[]
[null,null,null,null,"Calculate the value of x to 1 decimal place."]
[null,null,null,null,null,null,null,null,null,null,null,null,null,null,null,null,null,null,"Answer   x  =",null,null,null,null,null,null,null,"cm",null,null,null,null,null,null,null,null,null,null,null,null,{"$f":"ROUND(F119*COS(G122*PI()/180),1)","v":17}]
[null,null,null,null,null,null,null,null,null,null,null,null,null,null,null,null,null,null,null,null,null,null,null,null,null,null,null,null,"( 4 marks )"]
[]
[null,null,null,null,null,null,null,null,null,null,null,null,null,null,null,null,null,null,null,null,null,null,null,null,null,null,null,"Total marks 23 "]